bitfinex-derivatives/quotes_BNBF0:USTF0_20260114
["timestamp","ask_amount","ask_price","bid_price","bid_amount"]
[1768387120364,0.76867026,935.71,934.33,2.6562837]
[1768387120570,0.76867026,935.7,934.33,2.6562837]
[1768387120768,0.76867026,935.69,934.33,2.6562837]
[1768387120968,0.76867026,935.68,934.33,2.6562837]
[1768387121170,0.76867026,935.67,934.33,2.6562837]
[1768387121373,0.76867026,935.66,934.33,2.6562837]
[1768387121672,0.76867026,935.65,934.33,2.6562837]
[1768387121872,0.76867026,935.64,934.33,2.6562837]
[1768387122068,0.76867026,935.63,934.33,2.6562837]
[1768387122273,0.76867026,935.62,934.33,2.6562837]
[1768387122573,0.76867026,935.61,934.33,2.6562837]
[1768387122770,1.62,935.81,934.33,2.6562837]
[1768387122973,0.76894478,935.8,934.33,2.6562837]
[1768387123169,0.76894478,935.79,934.33,2.6562837]
[1768387123372,0.76894478,935.78,934.33,2.6562837]
[1768387123569,0.76894478,935.77,934.33,2.6562837]
[1768387123774,0.76894478,935.76,934.33,2.6562837]
[1768387124070,0.76894478,935.75,934.36,2.6562837]
[1768387124274,0.76894478,935.74,934.36,2.6562837]
[1768387124470,0.76894478,935.73,934.36,2.6562837]
[1768387124670,0.76894478,935.72,934.38,2.6562837]
[1768387124973,0.76894478,935.71,934.38,2.6562837]
[1768387125174,0.76894478,935.7,934.38,2.6562837]
[1768387125371,0.76894478,935.69,934.38,2.6562837]
[1768387125671,0.76894478,935.68,934.38,2.6562837]
[1768387125876,0.76894478,935.67,934.38,2.6562837]
[1768387126075,1.62,935.81,934.38,2.6562837]
[1768387126276,0.7689303,935.8,934.38,2.6562837]
[1768387126472,0.7689303,935.79,934.38,2.6562837]
[1768387126673,0.7689303,935.78,934.38,2.6562837]
[1768387126872,0.7689303,935.77,934.38,2.6562837]
[1768387127072,0.7689303,935.76,934.38,2.6562837]
[1768387127272,0.7689303,935.75,934.38,2.6562837]
[1768387127576,0.7689303,935.74,934.38,2.6562837]
[1768387127777,0.7689303,935.73,934.37,2.6562837]
[1768387127973,0.7689303,935.72,934.37,2.6562837]
[1768387128274,0.7689303,935.71,934.37,2.6562837]
[1768387128476,0.7689303,935.7,934.37,2.6562837]
[1768387128676,1.62,935.81,934.37,2.6562837]
[1768387128976,0.76876747,935.8,934.37,2.6562837]
[1768387129176,0.76876747,935.79,934.37,2.6562837]
[1768387129372,0.76876747,935.78,934.37,2.6562837]
[1768387129671,0.76876747,935.77,934.37,2.6562837]
[1768387129874,0.76876747,935.76,934.37,2.6562837]
[1768387130074,0.76876747,935.75,934.37,2.6562837]
[1768387130274,0.76876747,935.74,934.37,2.6562837]
[1768387130578,0.76876747,935.73,934.37,2.6562837]
[1768387130773,0.76876747,935.72,934.37,2.6562837]
[1768387130978,0.76876747,935.71,934.37,2.6562837]
[1768387131279,0.18596002,936.52,934.36,2.6562837]
[1768387131480,0.76868535,936.51,934.36,2.6562837]
[1768387131680,0.76868535,936.5,934.36,2.6562837]
[1768387131974,0.76868535,936.49,934.36,2.6562837]
[1768387132175,0.76868535,936.48,934.36,2.6562837]
[1768387132378,0.76868535,936.47,934.36,2.6562837]
[1768387132578,0.76868535,936.46,934.36,2.6562837]
[1768387132878,0.76868535,936.45,934.36,2.6562837]
[1768387133080,0.76868535,936.44,934.36,2.6562837]
[1768387133378,0.76868535,936.43,934.36,2.6562837]
[1768387133578,0.76868535,936.42,934.36,2.6562837]
[1768387133876,0.76868535,936.41,934.36,2.6562837]
[1768387134076,0.76868535,936.4,934.36,2.6562837]
[1768387134275,0.76868535,936.39,934.36,2.6562837]
[1768387134479,0.76868535,936.38,934.36,2.6562837]
[1768387134776,0.76868535,936.37,934.36,2.6562837]
[1768387134979,0.76868535,936.36,934.36,2.6562837]
[1768387135179,0.76868535,936.35,934.36,2.6562837]
[1768387135377,0.76868535,936.34,934.36,2.6562837]
[1768387135579,0.76868535,936.33,934.36,2.6562837]
[1768387135779,0.76868535,936.32,934.36,2.6562837]
[1768387135980,0.76868535,936.31,934.48,2.6562837]
[1768387136177,0.76868535,936.3,934.48,2.6562837]
[1768387136476,0.76868535,936.29,934.48,2.6562837]
[1768387136677,0.76868535,936.28,934.47,2.6562837]
[1768387136878,0.76868535,936.27,934.47,2.6562837]
[1768387137074,0.76868535,936.26,934.47,2.6562837]
[1768387137280,0.76868535,936.25,934.47,2.6562837]
[1768387137476,0.76868535,936.24,934.47,2.6562837]
[1768387137680,0.76868535,936.23,934.47,2.6562837]
[1768387137877,0.76868535,936.22,934.47,2.6562837]
[1768387138078,0.76868535,936.21,934.47,2.6562837]
[1768387138278,0.76868535,936.2,934.47,2.6562837]
[1768387138479,0.76868535,936.19,934.47,2.6562837]
[1768387138680,0.76868535,936.18,934.46,2.6562837]
[1768387138979,0.76868535,936.17,934.46,2.6562837]
[1768387139180,0.76868535,936.16,934.46,2.6562837]
[1768387139376,0.76868535,936.15,934.46,2.6562837]
[1768387139678,0.76868535,936.14,934.46,2.6562837]
[1768387139880,0.76868535,936.13,934.46,2.6562837]
[1768387140181,0.76868535,936.12,934.46,2.6562837]
[1768387140378,0.76868535,936.11,934.46,2.6562837]
[1768387140675,0.76868535,936.1,934.46,2.6562837]
[1768387140977,0.76868535,936.09,934.46,2.6562837]
[1768387141281,1.499,936.42,934.46,2.6562837]
[1768387144285,0.76809147,936.41,934.45,2.6562837]
[1768387144584,1.499,936.42,934.45,2.6562837]
[1768387144782,0.76800787,936.41,934.45,2.6562837]
[1768387144982,0.76800787,936.4,934.45,2.6562837]
[1768387145186,0.76800787,936.39,934.45,2.6562837]
[1768387145381,0.76800787,936.38,934.45,2.6562837]
[1768387145581,0.76800787,936.37,934.45,2.6562837]
[1768387145785,0.76800787,936.36,934.45,2.6562837]
[1768387145986,0.76800787,936.35,934.45,2.6562837]
[1768387146182,0.76800787,936.34,934.45,2.6562837]
[1768387146481,0.76800787,936.33,934.45,2.6562837]
[1768387146682,0.76800787,936.32,934.45,2.6562837]
[1768387146881,0.76787133,936.31,934.45,2.6562837]
[1768387147086,0.76787133,936.3,934.45,2.6562837]
[1768387147287,0.76787133,936.29,934.45,2.6562837]
[1768387147484,0.76787133,936.28,934.45,2.6562837]
[1768387147687,0.76787133,936.27,934.45,2.6562837]
[1768387147889,0.76787133,936.26,934.45,2.6562837]
[1768387148088,0.76787133,936.25,934.45,2.6562837]
[1768387148291,0.76787133,936.24,934.45,2.6562837]
[1768387148492,0.76787133,936.23,934.45,2.6562837]
[1768387148687,0.76787133,936.22,934.45,2.6562837]
[1768387148889,0.76787133,936.21,934.45,2.6562837]
[1768387149090,0.76787133,936.2,934.45,2.6562837]
[1768387149390,0.76787133,936.19,934.45,2.6562837]
[1768387149585,0.76787133,936.18,934.49,2.6562837]
[1768387149886,0.76787133,936.17,934.49,2.6562837]
[1768387150091,0.76787133,936.16,934.62,2.6562837]
[1768387150292,0.76787133,936.15,934.62,2.6562837]
[1768387150491,0.76787133,936.14,934.62,2.6562837]
[1768387150790,0.76787133,936.13,934.61,2.6562837]
[1768387150992,0.76787133,936.12,934.61,2.6562837]
[1768387151189,0.76787133,936.11,934.61,2.6562837]
[1768387151391,0.76787133,936.1,934.61,2.6562837]
[1768387151594,0.76787133,936.09,934.6,2.6562837]
[1768387151892,0.76787133,936.08,934.6,2.6562837]
[1768387152188,0.76787133,936.07,934.59,2.6562837]
[1768387152389,0.76787133,936.06,934.59,2.6562837]
[1768387152588,0.76787133,936.05,934.59,2.6562837]
[1768387152892,0.76787133,936.04,934.59,2.6562837]
[1768387153089,0.76787133,936.03,934.58,2.6562837]
[1768387153292,1.499,936.42,934.58,2.6562837]
[1768387153293,0.76711436,936.02,934.58,2.6562837]
[1768387153491,1.499,936.42,934.58,2.6562837]
[1768387153693,0.76711394,936.41,934.58,2.6562837]
[1768387153888,0.76711394,936.4,934.58,2.6562837]
[1768387154093,0.76711394,936.39,934.58,2.6562837]
[1768387154289,0.76711394,936.38,934.59,2.6562837]
[1768387154591,0.76711394,936.37,934.59,2.6562837]
[1768387154889,0.76711394,936.36,934.66,2.6562837]
[1768387155091,0.76711394,936.35,934.66,2.6562837]
[1768387155292,0.76711394,936.34,934.65,2.6562837]
[1768387155489,0.76711394,936.33,934.65,2.6562837]
[1768387155696,0.76711394,936.32,934.66,2.6562837]
[1768387155997,0.76711394,936.31,934.66,2.6562837]
[1768387156196,0.76665621,936.3,934.66,2.6562837]
[1768387156399,0.76665621,936.29,934.66,2.6562837]
[1768387156602,0.76665621,936.28,934.66,2.6562837]
[1768387156800,0.76665621,936.27,934.66,2.6562837]
[1768387157000,0.76665621,936.26,934.66,2.6562837]
[1768387157201,0.76665621,936.25,934.66,2.6562837]
[1768387157398,0.76665621,936.25,934.32,3.7187971]
[1768387157399,0.76665621,936.24,934.65,2.6562837]
[1768387157598,0.76665621,936.23,934.65,2.6562837]
[1768387157901,0.76665621,936.22,934.66,2.6562837]
[1768387158102,0.76665621,936.21,934.66,2.6562837]
[1768387158304,0.76665621,936.2,934.66,2.6562837]
[1768387158600,1.499,936.42,934.71,2.6562837]
[1768387158897,0.76644297,936.41,934.71,2.6562837]
[1768387159101,0.76644297,936.4,934.71,2.6562837]
[1768387159300,0.76644297,936.39,934.71,2.6562837]
[1768387159502,0.76644297,936.38,934.7,2.6562837]
[1768387159700,0.76644297,936.37,934.7,2.6562837]
[1768387159902,0.76644297,936.36,934.7,2.6562837]
[1768387160098,0.76644297,936.35,934.7,2.6562837]
[1768387160302,0.76644297,936.34,934.7,2.6562837]
[1768387160500,0.76644297,936.33,934.69,2.6562837]
[1768387160698,0.76644297,936.32,934.69,2.6562837]
[1768387160899,0.76644297,936.31,934.69,2.6562837]
[1768387161101,0.76644297,936.3,934.69,2.6562837]
[1768387161304,0.76644297,936.29,934.69,2.6562837]
[1768387161504,0.76644297,936.28,934.68,2.6562837]
[1768387161705,0.76644297,936.27,934.68,2.6562837]
[1768387161900,0.76644297,936.26,934.68,2.6562837]
[1768387162101,0.76644297,936.25,934.68,2.6562837]
[1768387162303,1.499,936.42,934.68,2.6562837]
[1768387162602,0.76590757,936.41,934.68,2.6562837]
[1768387162903,0.76590757,936.4,934.68,2.6562837]
[1768387163103,0.76590757,936.39,934.68,2.6562837]
[1768387163303,0.76590757,936.38,934.68,2.6562837]
[1768387163501,0.76590757,936.37,934.67,2.6562837]
[1768387163805,0.76590757,936.36,934.67,2.6562837]
[1768387164108,0.76590757,936.35,934.67,2.6562837]
[1768387164306,0.76590757,936.34,934.67,2.6562837]
[1768387164506,0.76590757,936.33,934.67,2.6562837]
[1768387164702,0.76590757,936.32,934.66,2.6562837]
[1768387164903,1.499,936.42,934.66,2.6562837]
[1768387165102,0.765722,936.41,934.66,2.6562837]
[1768387165401,0.76563884,936.4,934.66,2.6562837]
[1768387165611,0.76563884,936.39,934.66,2.6562837]
[1768387165907,1.499,936.42,934.69,2.6562837]
[1768387166207,1.499,936.42,934.84,2.6562837]
[1768387167204,1.499,936.42,934.82,2.6562837]
[1768387167803,1.499,936.42,934.83,2.6562837]
[1768387168204,1.499,936.42,934.87,2.6562837]
[1768387168806,1.499,936.42,934.88,2.6562837]
[1768387169309,1.499,936.42,934.86,2.6562837]
[1768387170909,1.499,936.42,934.87,2.6562837]
[1768387173511,1.499,936.42,934.54,3.7187971]
[1768387173512,1.499,936.42,934.86,2.6562837]
[1768387174008,1.499,936.42,934.87,2.6562837]
[1768387174609,1.499,936.42,934.88,2.6562837]
[1768387175507,1.499,936.42,934.87,2.6562837]
[1768387176008,1.499,936.42,934.88,2.6562837]
[1768387176612,1.499,936.42,934.87,2.6562837]
[1768387176810,0.01132441,936.97,934.87,2.6562837]
[1768387177109,0.76093967,936.96,934.94,2.6562837]
[1768387177315,0.76093967,936.95,934.94,2.6562837]
[1768387177514,0.76093967,936.94,934.94,2.6562837]
[1768387177812,0.76093967,936.93,934.94,2.6562837]
[1768387178014,0.76093967,936.92,934.94,2.6562837]
[1768387178311,0.18582348,937.31,934.93,2.6562837]
[1768387178615,0.76084368,937.3,934.93,2.6562837]
[1768387178910,0.76084368,937.29,934.93,2.6562837]
[1768387179214,0.76084368,937.28,934.92,2.6562837]
[1768387179515,0.76084368,937.27,934.92,2.6562837]
[1768387179715,0.76084368,937.26,934.93,2.6562837]
[1768387180012,0.76084368,937.25,934.93,2.6562837]
[1768387180213,0.76084368,937.24,934.92,2.6562837]
[1768387180411,0.76084368,937.23,934.92,2.6562837]
[1768387180614,0.76084368,937.22,934.92,2.6562837]
[1768387180814,0.76084368,937.21,934.93,2.6562837]
[1768387181012,0.76084368,937.2,934.93,2.6562837]
[1768387181217,0.76084368,937.19,934.92,2.6562837]
[1768387181416,0.76084368,937.18,934.92,2.6562837]
[1768387181618,0.76084368,937.17,934.92,2.6562837]
[1768387181917,0.76084368,937.16,934.92,2.6562837]
[1768387182114,0.76084368,937.15,934.92,2.6562837]
[1768387182315,0.76084368,937.14,934.92,2.6562837]
[1768387182511,0.76084368,937.13,934.92,2.6562837]
[1768387182714,0.76084368,937.12,934.92,2.6562837]
[1768387182917,0.76084368,937.11,934.92,2.6562837]
[1768387183116,0.76084368,937.1,934.92,2.6562837]
[1768387183321,0.76080508,937.09,934.93,2.6562837]
[1768387183518,0.76080508,937.08,934.93,2.6562837]
[1768387183719,0.76080508,937.07,934.93,2.6562837]
[1768387184020,0.76080508,937.06,934.93,2.6562837]
[1768387184319,0.76080508,937.05,934.93,2.6562837]
[1768387184617,0.76080508,937.04,934.93,2.6562837]
[1768387184818,0.76080508,937.03,934.93,2.6562837]
[1768387185019,0.76080508,937.02,934.93,2.6562837]
[1768387185220,0.76080508,937.01,934.93,2.6562837]
[1768387185420,0.76080508,937.0,934.92,2.6562837]
[1768387185617,0.76080508,936.99,934.92,2.6562837]
[1768387185918,0.76080508,936.98,934.92,2.6562837]
[1768387186220,0.76080508,936.97,934.92,2.6562837]
[1768387186417,0.76080508,936.96,934.93,2.6562837]
[1768387186620,0.76080508,936.95,934.93,2.6562837]
[1768387186820,0.76080508,936.94,934.93,2.6562837]
[1768387187116,0.76080508,936.93,934.93,2.6562837]
[1768387187417,0.76080508,936.92,934.93,2.6562837]
[1768387187616,0.76080508,936.91,934.93,2.6562837]
[1768387187920,0.76080508,936.9,934.94,2.6562837]
[1768387188118,0.76080508,936.89,934.94,2.6562837]
[1768387188321,0.76080508,936.88,934.94,2.6562837]
[1768387188521,0.76080508,936.87,934.94,2.6562837]
[1768387188721,0.76080508,936.86,934.94,2.6562837]
[1768387188917,0.76080508,936.85,934.94,2.6562837]
[1768387189119,0.76080508,936.84,934.96,2.6562837]
[1768387189322,0.76080508,936.83,934.96,2.6562837]
[1768387189523,0.76080508,936.82,934.97,2.6562837]
[1768387189820,0.76080508,936.81,934.97,2.6562837]
[1768387190123,0.76080508,936.8,934.97,2.6562837]
[1768387190321,0.76080508,936.79,934.97,2.6562837]
[1768387190520,1.196,937.28,934.97,2.6562837]
[1768387190719,0.76097163,937.27,934.97,2.6562837]
[1768387190923,0.76097163,937.26,934.97,2.6562837]
[1768387191124,0.76097163,937.25,935.0,2.6562837]
[1768387191421,0.76097163,937.24,935.0,2.6562837]
[1768387191623,0.76097163,937.23,935.0,2.6562837]
[1768387191823,0.76097163,937.22,935.0,2.6562837]
[1768387192025,0.76097163,937.21,935.0,2.6562837]
[1768387192222,0.76097163,937.2,935.01,2.6562837]
[1768387192422,0.76097163,937.19,935.01,2.6562837]
[1768387192621,0.76097163,937.18,935.01,2.6562837]
[1768387192826,0.76097163,937.17,935.01,2.6562837]
[1768387193026,0.76097163,937.16,935.01,2.6562837]
[1768387193225,0.76097163,937.15,935.02,2.6562837]
[1768387193422,0.76097163,937.14,935.02,2.6562837]
[1768387193623,0.76097163,937.13,935.02,2.6562837]
[1768387193823,0.76097163,937.12,935.02,2.6562837]
[1768387194024,0.76097163,937.11,935.02,2.6562837]
[1768387194328,0.76097163,937.1,935.04,2.6562837]
[1768387194527,0.76097163,937.09,935.04,2.6562837]
[1768387194728,0.76097163,937.08,935.04,2.6562837]
[1768387195027,0.76097163,937.07,935.04,2.6562837]
[1768387195231,0.76097163,937.06,935.04,2.6562837]
[1768387195428,0.76097163,937.05,935.04,2.6562837]
[1768387195628,0.76097163,937.04,935.04,2.6562837]
[1768387195928,0.76097163,937.03,935.04,2.6562837]
[1768387196223,0.76097163,937.02,935.05,2.6562837]
[1768387196428,0.76097163,937.01,935.05,2.6562837]
[1768387196624,0.76097163,937.0,935.05,2.6562837]
[1768387196829,0.76097163,936.99,935.05,2.6562837]
[1768387197128,1.196,937.28,935.05,2.6562837]
[1768387197129,0.76097163,936.98,935.05,2.6562837]
[1768387197325,0.76097163,936.97,935.06,2.6562837]
[1768387197525,0.76097163,936.96,935.06,2.6562837]
[1768387197825,0.76097163,936.95,935.06,2.6562837]
[1768387198125,0.76097163,936.94,935.06,2.6562837]
[1768387198327,0.76097163,936.93,935.06,2.6562837]
[1768387198527,0.76247628,936.92,935.07,2.6562837]
[1768387198725,0.76247628,936.91,935.07,2.6562837]
[1768387198923,0.76247628,936.9,935.07,2.6562837]
[1768387199124,0.76247628,936.89,935.07,2.6562837]
[1768387199325,0.76247628,936.88,935.07,2.6562837]
[1768387199528,0.76247628,936.87,935.07,2.6562837]
[1768387199728,0.76247628,936.86,935.07,2.6562837]
[1768387200028,0.76247628,936.85,935.07,2.6562837]
[1768387200228,0.76247628,936.84,935.07,2.6562837]
[1768387200426,0.76247628,936.83,935.08,2.6562837]
[1768387200628,0.76247628,936.82,935.08,2.6562837]
[1768387200829,0.76247628,936.81,935.08,2.6562837]
[1768387201130,0.76247628,936.8,935.08,2.6562837]
[1768387201326,0.76247628,936.79,935.08,2.6562837]
[1768387201528,0.76247628,936.78,935.08,2.6562837]
[1768387201728,0.76247628,936.77,935.08,2.6562837]
[1768387202029,0.76247628,936.76,935.08,2.6562837]
[1768387202228,0.76247628,936.75,935.08,2.6562837]
[1768387202425,0.76247628,936.74,935.08,2.6562837]
[1768387202628,0.76247628,936.73,935.08,2.6562837]
[1768387202827,0.76247628,936.72,935.08,2.6562837]
[1768387203025,0.76247628,936.71,935.08,2.6562837]
[1768387203226,0.76247628,936.7,935.09,2.6562837]
[1768387203528,0.76247628,936.69,935.09,2.6562837]
[1768387203728,0.76247628,936.68,935.08,2.6562837]
[1768387204024,0.76247628,936.67,935.08,2.6562837]
[1768387204226,0.76247628,936.66,935.04,2.6562837]
[1768387204529,1.196,937.28,935.04,2.6562837]
[1768387204724,0.7637364,937.27,935.05,2.6562837]
[1768387205226,1.196,937.28,935.06,2.6562837]
[1768387205727,0.76391614,937.27,935.06,2.6562837]
[1768387206228,0.76391614,937.27,935.08,2.6562837]
[1768387206432,1.196,937.28,935.08,2.6562837]
[1768387206730,0.76412626,937.27,935.08,2.6562837]
[1768387206928,0.76412626,937.26,935.08,2.6562837]
[1768387207128,0.76412626,937.25,935.08,2.6562837]
[1768387207328,0.76412626,937.24,935.1,2.6562837]
[1768387207528,0.76412626,937.23,935.1,2.6562837]
[1768387207732,0.76412626,937.22,935.1,2.6562837]
[1768387208032,0.76412626,937.21,935.1,2.6562837]
[1768387208234,0.76412626,937.2,935.12,2.6562837]
[1768387208432,0.76412626,937.19,935.12,2.6562837]
[1768387208729,0.76412626,937.18,935.12,2.6562837]
[1768387208930,0.76412626,937.17,935.12,2.6562837]
[1768387209132,0.76412626,937.16,935.12,2.6562837]
[1768387209430,0.76412626,937.15,935.14,2.6562837]
[1768387209632,0.76412626,937.14,935.14,2.6562837]
[1768387209829,0.76412626,937.13,935.14,2.6562837]
[1768387210130,0.76412626,937.12,935.14,2.6562837]
[1768387210332,0.76412626,937.11,935.18,2.6562837]
[1768387210534,0.76412626,937.1,935.18,2.6562837]
[1768387210731,0.76412626,937.09,935.18,2.6562837]
[1768387210932,0.76412626,937.08,935.18,2.6562837]
[1768387211232,0.76412626,937.07,935.18,2.6562837]
[1768387211432,0.76412626,937.06,935.2,2.6562837]
[1768387211633,0.76412626,937.05,935.2,2.6562837]
[1768387211834,0.76412626,937.04,935.2,2.6562837]
[1768387212034,0.76412626,937.03,935.2,2.6562837]
[1768387212233,0.76412626,937.02,935.2,2.6562837]
[1768387212433,0.76412626,937.01,935.21,2.6562837]
[1768387212636,0.76412626,937.0,935.21,2.6562837]
[1768387212836,0.76412626,936.99,935.21,2.6562837]
[1768387213033,0.76412626,936.98,935.21,2.6562837]
[1768387213334,0.76412626,936.97,935.21,2.6562837]
[1768387213535,0.76412626,936.96,935.22,2.6562837]
[1768387213738,0.76412626,936.95,935.22,2.6562837]
[1768387213936,0.76412626,936.94,935.22,2.6562837]
[1768387214136,0.76412626,936.93,935.19,2.6562837]
[1768387214337,0.76412626,936.92,935.19,2.6562837]
[1768387214540,0.76412626,936.91,935.2,2.6562837]
[1768387214841,0.76412626,936.9,935.2,2.6562837]
[1768387215042,0.76412626,936.89,935.2,2.6562837]
[1768387215341,0.76412626,936.88,935.2,2.6562837]
[1768387215543,0.76412626,936.87,935.21,2.6562837]
[1768387215743,0.76412626,936.86,935.21,2.6562837]
[1768387215940,0.76412626,936.85,935.21,2.6562837]
[1768387216147,0.76412626,936.84,935.21,2.6562837]
[1768387216443,1.196,937.28,935.21,2.6562837]
[1768387216444,0.76412626,936.83,935.21,2.6562837]
[1768387216743,0.76412626,936.82,935.21,2.6562837]
[1768387217043,0.76412626,936.81,935.21,2.6562837]
[1768387217339,0.76412626,936.8,935.22,2.6562837]
[1768387217642,1.196,937.28,935.22,2.6562837]
[1768387217643,0.76412626,936.79,935.22,2.6562837]
[1768387217839,0.76412626,936.78,935.22,2.6562837]
[1768387218043,0.76412626,936.77,935.22,2.6562837]
[1768387218342,0.76412626,936.76,935.22,2.6562837]
[1768387218542,0.76412626,936.75,935.22,2.6562837]
[1768387218739,0.76412626,936.74,935.22,2.6562837]
[1768387218943,0.76412626,936.73,935.22,2.6562837]
[1768387219141,0.76412626,936.72,935.22,2.6562837]
[1768387219346,0.76412626,936.71,935.22,2.6562837]
[1768387219644,0.76412626,936.7,935.22,2.6562837]
[1768387219844,0.76412626,936.69,935.22,2.6562837]
[1768387220044,0.76412626,936.68,935.22,2.6562837]
[1768387220339,0.76412626,936.67,935.22,2.6562837]
[1768387220644,0.76412626,936.66,935.22,2.6562837]
[1768387220846,0.76412626,936.65,935.22,2.6562837]
[1768387221146,0.76412626,936.64,935.22,2.6562837]
[1768387221344,0.76412626,936.63,935.22,2.6562837]
[1768387221544,0.76412626,936.62,935.22,2.6562837]
[1768387221742,0.76412626,936.61,935.22,2.6562837]
[1768387221945,0.76412626,936.6,935.22,2.6562837]
[1768387222245,0.76412626,936.59,935.22,2.6562837]
[1768387222545,0.76412626,936.58,935.22,2.6562837]
[1768387222743,0.76412626,936.57,935.22,2.6562837]
[1768387222940,0.76412626,936.56,935.22,2.6562837]
[1768387223145,0.76412626,936.55,935.22,2.6562837]
[1768387223341,0.76412626,936.54,935.22,2.6562837]
[1768387223546,0.76412626,936.53,935.22,2.6562837]
[1768387223747,0.76412626,936.52,935.22,2.6562837]
[1768387223944,0.76412626,936.51,935.22,2.6562837]
[1768387224249,0.76412626,936.5,935.22,2.6562837]
[1768387224448,0.76412626,936.49,935.22,2.6562837]
[1768387224649,0.76412626,936.48,935.22,2.6562837]
[1768387224846,0.76412626,936.47,935.22,2.6562837]
[1768387225050,0.76412626,936.46,935.22,2.6562837]
[1768387225248,0.76412626,936.45,935.22,2.6562837]
[1768387225447,0.76412626,936.44,935.22,2.6562837]
[1768387225650,0.76412626,936.43,935.22,2.6562837]
[1768387225949,0.01342307,937.38,935.22,2.6562837]
[1768387226149,0.76627855,937.37,935.22,2.6562837]
[1768387226348,0.76627855,937.36,935.22,2.6562837]
[1768387226551,0.76627855,937.35,935.22,2.6562837]
[1768387226751,0.76627855,937.34,935.22,2.6562837]
[1768387226952,0.76627855,937.33,935.22,2.6562837]
[1768387227152,0.76627855,937.32,935.22,2.6562837]
[1768387227355,0.76627855,937.31,935.22,2.6562837]
[1768387227556,0.76627855,937.3,935.22,2.6562837]
[1768387227856,0.76627855,937.29,935.22,2.6562837]
[1768387228154,0.76627855,937.28,935.22,2.6562837]
[1768387228355,0.76627855,937.27,935.22,2.6562837]
[1768387228559,0.76627855,937.26,935.22,2.6562837]
[1768387228757,0.76627855,937.25,935.22,2.6562837]
[1768387228956,0.76627855,937.24,935.22,2.6562837]
[1768387229260,0.76627855,937.23,935.22,2.6562837]
[1768387229460,0.76627855,937.22,935.22,2.6562837]
[1768387229658,0.76627855,937.21,935.22,2.6562837]
[1768387229858,0.76627855,937.2,935.22,2.6562837]
[1768387230056,0.76627855,937.19,935.22,2.6562837]
[1768387230260,0.76627855,937.18,935.22,2.6562837]
[1768387230458,0.76627855,937.17,935.22,2.6562837]
[1768387230662,0.76627855,937.16,935.22,2.6562837]
[1768387230861,0.76627855,937.15,935.22,2.6562837]
[1768387231059,0.76627855,937.14,935.22,2.6562837]
[1768387231360,0.76627855,937.13,935.22,2.6562837]
[1768387231562,0.76627855,937.12,935.22,2.6562837]
[1768387231858,0.76627855,937.11,935.22,2.6562837]
[1768387232064,0.76627855,937.1,935.22,2.6562837]
[1768387232264,0.76627855,937.09,935.27,2.6562837]
[1768387232465,0.76627855,937.08,935.27,2.6562837]
[1768387232661,0.76627855,937.07,935.27,2.6562837]
[1768387232863,0.76627855,937.06,935.32,2.6562837]
[1768387233059,0.76627855,937.05,935.32,2.6562837]
[1768387233262,0.76627855,937.04,935.32,2.6562837]
[1768387233559,0.76627855,937.03,935.32,2.6562837]
[1768387233764,0.76627855,937.02,935.45,2.6562837]
[1768387233961,0.76627855,937.01,935.45,2.6562837]
[1768387234161,0.76627855,937.0,935.45,2.6562837]
[1768387234361,0.76627855,936.99,935.45,2.6562837]
[1768387234664,0.76627855,936.98,935.45,2.6562837]
[1768387234965,0.76627855,936.97,935.48,2.6562837]
[1768387235162,0.76627855,936.96,935.48,2.6562837]
[1768387235363,0.76627855,936.95,935.47,2.6562837]
[1768387235562,0.76627855,936.94,935.47,2.6562837]
[1768387235764,0.76627855,936.93,935.47,2.6562837]
[1768387235961,0.76627855,936.92,935.47,2.6562837]
[1768387236161,0.76627855,936.91,935.47,2.6562837]
[1768387236369,0.76627855,936.9,935.46,2.6562837]
[1768387236562,0.76627855,936.89,935.46,2.6562837]
[1768387236762,1.686,937.37,935.46,2.6562837]
[1768387236763,0.76627855,936.88,935.46,2.6562837]
[1768387236967,0.76627855,936.87,935.46,2.6562837]
[1768387237162,0.76627855,936.86,935.46,2.6562837]
[1768387237363,0.76627855,936.85,935.46,2.6562837]
[1768387237564,0.76627855,936.84,935.45,2.6562837]
[1768387237762,0.76627855,936.83,935.45,2.6562837]
[1768387237967,0.76627855,936.82,935.45,2.6562837]
[1768387238267,0.76627855,936.81,935.45,2.6562837]
[1768387238467,0.76627855,936.8,935.44,2.6562837]
[1768387238764,0.76627855,936.79,935.44,2.6562837]
[1768387238964,0.76627855,936.78,935.44,2.6562837]
[1768387239264,0.76627855,936.77,935.44,2.6562837]
[1768387239467,1.686,937.37,935.44,2.6562837]
[1768387239663,0.76402563,937.36,935.44,2.6562837]
[1768387239866,0.76402563,937.35,935.44,2.6562837]
[1768387240063,0.76402563,937.34,935.44,2.6562837]
[1768387240266,0.76402563,937.33,935.44,2.6562837]
[1768387240466,0.76402563,937.32,935.43,2.6562837]
[1768387240667,0.76402563,937.31,935.43,2.6562837]
[1768387240866,0.76402563,937.3,935.43,2.6562837]
[1768387241063,0.76402563,937.29,935.43,2.6562837]
[1768387241267,0.76402563,937.28,935.43,2.6562837]
[1768387241565,0.76402563,937.27,935.42,2.6562837]
[1768387241764,0.76402563,937.26,935.42,2.6562837]